Cogmind - Beta 13 @@@ ROGUE MODE // 2024.04.30 @ 19:12:29 Player: Cheeriohz Result: Destroyed by G-47 Trooper with Particle Gun Performance ------------- Evolutions (2) 1000 Regions Visited (5) 1000 Robots Destroyed (62) 310 Value Destroyed (2409) 2409 Prototype IDs (0) 0 Alien Tech Used (0) 0 Bonus (366) 366 TOTAL SCORE: 5085 Bonus ------- High Alert Combat Kills 180 Follower Combat Kills 40 Entered Garrisons 200 Friendly Fire -54 Cogmind --------- Core Integrity 0/550 Matter 300/300 Energy 227/315 System Corruption 0% Temperature Cool (60) Movement Walking (122) Location -8/Materials Parts ------- > --- POWER (1) -------- Neutrino Core > --- PROPULSION (4) --- Aluminum Leg Carbon-fiber Leg Carbon-fiber Leg Titanium Leg > --- UTILITY (4) ------ Improved Heat Sink Improved Heat Sink Large Storage Unit Medium Insulated Plating > --- WEAPON (2) ------- Variable Charge Gun Long-range Proton Cannon > --- INVENTORY (15) --- Improved Ion Engine Cargo Legs Improved Heat Sink High-capacity Matter Pod (200) Hacking Suite Hacking Suite System Shield Long-range Tractor Beam Heavy Laser Heavy Laser Heavy Ion Cannon Mass Driver Grenade Launcher Heavy Flail Peak State ------------ > --- POWER ------------ Neutrino Core > --- PROPULSION ------- Aluminum Leg Carbon-fiber Leg Carbon-fiber Leg Titanium Leg > --- UTILITY ---------- Improved Heat Sink Improved Heat Sink Large Storage Unit Medium Insulated Plating > --- WEAPON ----------- Variable Charge Gun Long-range Proton Cannon > --- INVENTORY -------- Improved Ion Engine Cargo Legs Improved Heat Sink High-capacity Matter Pod Hacking Suite Hacking Suite System Shield Long-range Tractor Beam Heavy Laser Heavy Laser Heavy Ion Cannon Mass Driver Grenade Launcher Heavy Flail [Rating: 44] Favorites ----------- Power Ion Engine Engine Ion Engine Power Core Neutrino Core Propulsion Aluminum Leg Treads Light Treads Leg Aluminum Leg Utility Medium Storage Unit Device Improved Heat Sink Storage Medium Storage Unit Protection Light Armor Plating Weapon Shotgun Energy Gun Heavy Laser Energy Cannon Heavy Ion Cannon Ballistic Gun Shotgun Launcher Grenade Launcher Impact Weapon Heavy Flail Build | -11 -10 -10 -8 -8 -8 ------- Run | Yrd Mat Sub Mat Gar Mat Slots Evolved 4 | . . . 4 . . Power . | . . . . . . Propulsion 2 | . . . 2 . . Utility 2 | . . . 2 . . Weapon . | . . . . . . Parts Attached 61 | 1 5 5 28 21 1 Power 5 | . 1 . 1 3 . Engine 4 | . 1 . 1 2 . Core 1 | . . . . 1 . Reactor . | . . . . . . Propulsion 20 | . . . 11 8 1 Treads 6 | . . . 6 . . Leg 14 | . . . 5 8 1 Wheel . | . . . . . . Hover . | . . . . . . Flight . | . . . . . . Utility 17 | 1 2 . 11 3 . Device 6 | 1 . . 4 1 . Storage 2 | . 1 . 1 . . Processor . | . . . . . . Hackware . | . . . . . . Protection 9 | . 1 . 6 2 . Artifact . | . . . . . . Weapon 19 | . 2 5 5 7 . Energy Gun 5 | . . 2 2 1 . Energy Cannon 5 | . . . 2 3 . Ballistic Gun 6 | . 2 3 1 . . Ballistic Cannon . | . . . . . . Launcher 2 | . . . . 2 . Special Weapon . | . . . . . . Impact Weapon 1 | . . . . 1 . Slashing Weapon . | . . . . . . Piercing Weapon . | . . . . . . Special Melee Weapon . | . . . . . . Unidentified Prototypes . | . . . . . . Parts Lost 9 | . . . 1 7 1 Power 1 | . . . . 1 . Propulsion 3 | . . . . 2 1 Utility 4 | . . . 1 3 . Weapon 1 | . . . . 1 . Highest Loss Streak 5 | . . . 1 5 1 To Critical Strikes . | . . . . . . Average Slot Usage (%) 97 | . 100 99 97 90 99 Engine 10 | . 14 14 9 7 . Treads 3 | . . . 15 . . Leg 26 | . 28 28 19 31 35 Device 6 | . 3 . 13 10 18 Storage 11 | . 14 14 9 9 9 Protection 12 | . 10 14 13 12 9 Energy Gun 6 | . 1 5 13 . 9 Energy Cannon 3 | . . . . 14 9 Ballistic Gun 12 | . 26 22 3 . . Naked Turns . | . . . . . . Heaviest Build 57 | 13 24 25 51 57 57 Greatest Support 80 | 20 20 20 80 62 57 Greatest Overweight (x) 1 | . 1 1 1 1 1 Average Overweight (x) . | . . 1 . . . Largest Inventory Capacity 15 | 8 10 10 15 15 15 Average Capacity 11 | 8 9 10 11 15 15 Most Carried 15 | 7 10 10 15 15 15 Average Carried 11 | 6 9 9 11 14 15 Final Capacity 15 | 8 10 10 15 15 15 Final Carried 15 | 7 10 10 15 15 15 Class Distribution -------------------- 63% | Mutant 36% | Scavenger-Mutant Dominant Class ---------------- Mutant | -10/Materials Mutant | -10/Subcaves Scavenger-Mutant | -8/Materials Scavenger-Mutant | -8/Garrison Scavenger-Mutant | -8/Materials Resources | -11 -10 -10 -8 -8 -8 ----------- Run | Yrd Mat Sub Mat Gar Mat Matter Collected 1774 | 210 162 436 591 166 209 Remotely . | . . . . . . Salvage Created 2485 | 86 266 161 969 738 265 Parts 140 | 5 23 14 53 38 7 Haulers Intercepted 2 | . 1 . 1 . . Recyclers Shooed . | . . . . . . Parts Field Recycled . | . . . . . . Retrieved Matter . | . . . . . . Parts Self-Destructed 7 | . . 7 . . . Prevented . | . . . . . . Kills | -11 -10 -10 -8 -8 -8 ------- Run | Yrd Mat Sub Mat Gar Mat Combat Hostiles Destroyed 53 | . 5 4 19 20 5 Guns 29 | . 5 4 19 . 1 Cannons 18 | . . . . 15 3 AOE 4 | . . . . 4 . Classes Destroyed 14 | 2 4 2 5 1 . Worker 1 | . . . 1 . . Builder 1 | . 1 . . . . Tunneler 1 | 1 . . . . . Hauler 2 | . 1 . 1 . . Recycler 2 | 1 . . 1 . . Operator 2 | . 1 . 1 . . Swarmer 9 | . . . 3 6 . Grunt 20 | . 5 . 3 8 4 Brawler 1 | . . . 1 . . Duelist 2 | . . . 2 . . Sentry 12 | . . 1 7 4 . Hunter 5 | . . . 3 1 1 Behemoth 1 | . . . . 1 . Subdweller 3 | . . 3 . . . Best Kill Streak 5 | 2 3 2 3 5 3 Combat Bots Only 5 | . 3 2 3 5 3 Max Kills in Single Turn 2 | 1 1 1 2 2 1 Gunslinging . | . . . . . . Exploded 2 | . . . . 2 . Melee . | . . . . . . Uniques/NPCs Destroyed . | . . . . . . Combat | -11 -10 -10 -8 -8 -8 -------- Run | Yrd Mat Sub Mat Gar Mat Hostile Shots Fired 268 | . 11 17 97 123 20 Missed 66 | . 2 5 21 35 3 Damage Taken 3293 | 5 101 361 1019 1582 225 Core 670 | . 22 90 211 297 50 Absorbed by Shields . | . . . . . . Ignored by Resistances 74 | . . . 18 56 . Core Remaining (%) 77 | 100 . 55 . . . Volleys Fired 287 | 3 14 128 63 67 12 Largest 2 | 2 2 2 2 2 2 Hottest 156 | 80 46 83 138 130 156 Shots Fired 434 | 6 28 138 123 115 24 Gun 307 | 6 28 138 123 . 12 Cannon 108 | . . . . 96 12 Launcher 19 | . . . . 19 . Special . | . . . . . . Kinetic 182 | . 28 130 24 . . Thermal 215 | . . 8 99 96 12 Explosive 19 | . . . . 19 . Electromagnetic 18 | 6 . . . . 12 Robot Hit Streak 14 | 4 14 6 12 9 8 Robot Miss Streak 5 | 1 2 2 5 2 2 Penetration Max . | . . . . . . Secondary Targets . | . . . . . . Shots Hit Robots 206 | 5 21 13 83 67 17 Core Hits 107 | 3 15 10 38 36 5 Critical Kills 1 | . . . . 1 . Critical Parts Destroyed 1 | . . . . 1 . Critical Strikes 7 | . . . 4 2 1 Burn 4 | . . . 4 . . Meltdown 1 | . . . . 1 . Corrupt 1 | . . . . . 1 Smash 1 | . . . . 1 . Melee Attacks 1 | . . . . 1 . Impact 1 | . . . . 1 . Slashing . | . . . . . . Piercing . | . . . . . . Sneak Attacks 1 | . . . . 1 . Combat Hostiles 1 | . . . . 1 . Follow-up Attacks . | . . . . . . Damage Inflicted 5339 | 109 320 193 1618 2555 544 Guns 2455 | 65 320 193 1618 . 259 Cannons 2146 | . . . . 1861 285 Explosions 688 | 44 . . . 644 . Melee 50 | . . . . 50 . Ramming . | . . . . . . Kinetic 815 | . 320 172 323 . . Thermal 3480 | 44 . 21 1295 1861 259 Explosive 644 | . . . . 644 . Electromagnetic 350 | 65 . . . . 285 Impact 50 | . . . . 50 . Slashing . | . . . . . . Piercing . | . . . . . . Highest Corruption . | . . . . . . Average Corruption . | . . . . . . Corruption Purged . | . . . . . . Corruption Blocked . | . . . . . . Overload Shots . | . . . . . . Overflow Damage 98 | . . . . 93 5 Projectiles 31 | . . . . 26 5 Explosions 17 | . . . . 17 . Melee 50 | . . . . 50 . Knockbacks . | . . . . . . Impact . | . . . . . . Kinetic . | . . . . . . Secondary . | . . . . . . Self-Inflicted Damage 79 | 5 . . . 74 . Shots 4 | 1 . . . 3 . Rammed . | . . . . . . Targets Rammed . | . . . . . . Kicked . | . . . . . . Crushed . | . . . . . . Highest Temperature 329 | 48 10 . 329 299 180 Average Temperature 82 | 21 4 . 90 85 62 Received Heat Transfer 1099 | . 54 63 252 658 72 Effects 3 | . . . 2 1 . Shutdowns 1 | . . . 1 . . Energy Bleed 1 | . . . . 1 . Interference 1 | . . . 1 . . Siege Activations . | . . . . . . Robots Corrupted 1 | . . . . . 1 Combat Hostiles 1 | . . . . . 1 Parts Fried 1 | . . . . . 1 Impact Corruptions 1 | . . . . 1 . Robots Melted 1 | . . . . 1 . Combat Hostiles 1 | . . . . 1 . Parts Melted 18 | . . . 14 3 1 Heat Transferred 5516 | 50 . 25 2666 2405 370 Parts Sabotaged . | . . . . . . Parts Stolen . | . . . . . . Parts Stripped . | . . . . . . Power Chain Reactions 1 | 1 . . . . . Alert | -11 -10 -10 -8 -8 -8 ------- Run | Yrd Mat Sub Mat Gar Mat Peak Influence 749 | 10 261 . 210 749 550 Initial 364 | . 6 . . 5 364 Average 250 | 6 90 . 69 484 457 Maximum Alert Level 3 | . 1 . 1 3 2 Low Security (%) 63 | 100 93 . 99 20 . Level 1 6 | . 6 . . 10 24 Level 2 22 | . . . . 48 75 Level 3 7 | . . . . 20 . Level 4 . | . . . . . . Level 5 . | . . . . . . High Security . | . . . . . . Max Security . | . . . . . . Squads Dispatched 9 | . 3 . 5 . 1 Investigation 3 | . 2 . 1 . . Extermination . | . . . . . . Reinforcement 3 | . 1 . 1 . 1 Assault . | . . . . . . Garrison 3 | . . . 3 . . Intercept . | . . . . . . Searches Triggered . | . . . . . . Construction Impeded . | . . . . . . Haulers Reinforced . | . . . . . . Active Scanning Responses . | . . . . . . Cargo Convoy Interrupts . | . . . . . . Stealth | -11 -10 -10 -8 -8 -8 --------- Run | Yrd Mat Sub Mat Gar Mat Distress Signals 4 | . . . 4 . . Communications Jammed . | . . . . . . Distress Signals . | . . . . . . Times Spotted 83 | . 6 5 34 25 13 Peak Tracking Total 6 | . 3 3 5 6 6 Tactical Retreats 2 | . . 1 . 1 . Traps | -11 -10 -10 -8 -8 -8 ------- Run | Yrd Mat Sub Mat Gar Mat Traps Triggered 8 | . . 2 1 5 . Indirectly . | . . . . . . Trap Hack Attempts . | . . . . . . Triggered . | . . . . . . Disarmed . | . . . . . . Reprogrammed . | . . . . . . Reused . | . . . . . . Traps Extracted . | . . . . . . Installed . | . . . . . . Triggered 2 | . . 2 . . . Machines | -11 -10 -10 -8 -8 -8 ---------- Run | Yrd Mat Sub Mat Gar Mat Machines Disabled 7 | . . 1 1 3 2 Max in Single Turn 2 | . . 1 1 2 1 Phase Generator 1 | . . . . 1 . Machines Repaired . | . . . . . . Machines Dismantled . | . . . . . . Machines Sabotaged . | . . . . . . Overloaded Fab Kills . | . . . . . . Hacking | -11 -10 -10 -8 -8 -8 --------- Run | Yrd Mat Sub Mat Gar Mat Machines Accessed 13 | . 3 . 7 2 1 Terminals 10 | . 1 . 6 2 1 Fabricators . | . . . . . . Repair Stations . | . . . . . . Recycling Units 2 | . 2 . . . . Scanalyzers . | . . . . . . Garrison Access 1 | . . . 1 . . Total Hacks 30 | . 8 . 17 3 2 Successful 15 | . 6 . 7 1 1 Failed 15 | . 2 . 10 2 1 Catastrophic 3 | . . . 2 1 . Database Lockouts . | . . . . . . Manual 16 | . 8 . 6 . 2 Terminals 26 | . 6 . 15 3 2 Fabricators . | . . . . . . Repair Stations . | . . . . . . Recycling Units 2 | . 2 . . . . Scanalyzers . | . . . . . . Garrison Access 2 | . . . 2 . . Terminal Hacks 10 | . 4 . 5 1 . Robot Analysis 6 | . 4 . 2 . . Open Door 1 | . . . . 1 . Unreport Threat 3 | . . . 3 . . Fabricator Hacks . | . . . . . . Repair Station Hacks . | . . . . . . Recycling Unit Hacks . | . . . . . . Scanalyzer . | . . . . . . Garrison Access Hacks 1 | . . . 1 . . Unlock Access 1 | . . . 1 . . Unauthorized Hacks 4 | . 2 . 1 . 1 Terminals 2 | . . . 1 . 1 Botnet 2 | . . . 1 . 1 Fabricators . | . . . . . . Repair Stations . | . . . . . . Recycling Units 2 | . 2 . . . . Tunnel 2 | . 2 . . . . Scanalyzers . | . . . . . . Garrison Access . | . . . . . . Data Cores Recovered . | . . . . . . Used . | . . . . . . Hacking Detections 9 | . 1 . 5 2 1 Full Trace Events 2 | . . . 1 1 . Feedback Events . | . . . . . . Feedback Blocked . | . . . . . . Robot Schematics Acquired . | . . . . . . Robots Built . | . . . . . . Authchips . | . . . . . . Time . | . . . . . . Total Robot Build Rating . | . . . . . . Part Schematics Acquired . | . . . . . . Parts Built . | . . . . . . Authchips . | . . . . . . Time . | . . . . . . Total Part Build Rating . | . . . . . . Parts Repaired . | . . . . . . Time . | . . . . . . Parts Recycled . | . . . . . . Recycled Matter . | . . . . . . Retrieved Matter . | . . . . . . Retrieved Components . | . . . . . . Parts Scanalyzed . | . . . . . . Part Schematics Acquired . | . . . . . . Parts Damaged . | . . . . . . Bothacking | -11 -10 -10 -8 -8 -8 ------------ Run | Yrd Mat Sub Mat Gar Mat Used RIF Installer . | . . . . . . Robots Hacked . | . . . . . . Non-combat . | . . . . . . Combat . | . . . . . . Robot Hacks Applied . | . . . . . . Relay Couplers Released . | . . . . . . Fabnet Peak Effective % . | . . . . . . Robots Rewired . | . . . . . . Allies Hacked . | . . . . . . Hacks Repelled . | . . . . . . Allies | -11 -10 -10 -8 -8 -8 -------- Run | Yrd Mat Sub Mat Gar Mat Total Allies 2 | . . . . 2 . Largest Group 2 | . . . . 2 . Highest-Rated Group 62 | . . . . 62 . Highest-Rated Ally 31 | . . . . 31 . Total Orders . | . . . . . . Ally Attacks 13 | . . . . 13 . Total Damage 41 | . . . . 41 . Kills 2 | . . . . 2 . Allies Corrupted . | . . . . . . Allies Melted . | . . . . . . Intel | -11 -10 -10 -8 -8 -8 ------- Run | Yrd Mat Sub Mat Gar Mat Robot Analysis Total 6 | . 4 . 2 . . Derelict Logs Recovered 1 | . . 1 . . . Drone Launches . | . . . . . . Drone Recoveries . | . . . . . . Exploration | -11 -10 -10 -8 -8 -8 ------------- Run | Yrd Mat Sub Mat Gar Mat Turns Passed 6732 | 50 501 2774 1679 1507 221 Spaces Moved 3551 | 33 257 1311 960 881 109 Core . | . . . . . . Treads 183 | . . . 183 . . Legs 3368 | 33 257 1311 777 881 109 Wheels . | . . . . . . Hover . | . . . . . . Flight . | . . . . . . Fastest Speed 120 | 120 120 190 120 122 122 Average Speed 159 | 120 166 190 136 142 140 Slowest Speed 195 | 120 190 190 195 195 193 Overloaded Moves . | . . . . . . Propulsion Burnouts . | . . . . . . Robots Hopped . | . . . . . . Cave-ins Triggered . | . . . . . . Exploration Rate (%) 40 | 3 35 57 62 72 15 Regions Visited 5 Branch Regions 1 Pre-discovered Areas 4 | . 2 2 . . . Known Exits Taken 1 | . . . 1 . . Unknown Exits Taken 3 | 1 1 1 . . . Scrap Searched 3 | . . 3 . . . Spaces Dug 1 | . . . . 1 . Terrain Destroyed 122 | 3 . . . 118 1 Melee . | . . . . . . Projectile 1 | . . . . . 1 AOE 121 | 3 . . . 118 . Terrain Rammed . | . . . . . . Walls Destroyed . | . . . . . . Machines Disabled . | . . . . . . Actions | -11 -10 -10 -8 -8 -8 --------- Run | Yrd Mat Sub Mat Gar Mat Total 4191 | 37 306 1467 1214 1015 152 Wait 201 | . 16 10 113 32 30 Move 3546 | 32 256 1310 959 880 109 Hop . | . . . . . . Pick Up 29 | 1 6 4 17 1 . Fast Attach 34 | 1 3 4 17 8 1 Attach 8 | . . . 4 4 . Detach 9 | . 2 1 4 2 . Swap 19 | . 2 1 7 9 . Drop 52 | . 7 9 30 6 . Fire 287 | 3 14 128 63 67 12 Melee 1 | . . . . 1 . Ram . | . . . . . . Kick . | . . . . . . Crush . | . . . . . . Escape Stasis 5 | . . . . 5 . Rewire . | . . . . . . Trap . | . . . . . . Miscellaneous . | . . . . . . Route ------- -11/Scrapyard -10/Materials (discovered 2 exits: [*Min] / [*Sub]) -10/Subcaves -8/Materials (discovered 5 exits: [*Fac x2] / [*Sto x2] / Gar) -8/Garrison (discovered 2 exits: *Mat x2) -8/Materials History --------- Turn | Location | Event 1 | -11/Scrapyard | Discovered new exit (range 3) 51 | -11/Scrapyard | Entered Materials 322 | -10/Materials | Build established: Mutant 468 | -10/Materials | Discovered new exit (range 8) 519 | -10/Materials | Discovered new exit (range 10) 552 | -10/Materials | Entered Subcaves 607 | -10/Subcaves | Learned location of Zion (-6) 607 | -10/Subcaves | Met a Zionite searching for "candidates" 778 | -10/Subcaves | A swath of the cavern ceiling suddenly collapsed 1017 | -10/Subcaves | Visited 4L-MR0's lab 1125 | -10/Subcaves | Found Prototype Flight Unit 1222 | -10/Subcaves | Discovered new exit (range 12) 1981 | -10/Subcaves | Shifting Twisted Machinery released Sub. Machine Gun 1989 | -10/Subcaves | Shifting Twisted Machinery released Enh. Flamer 2080 | -10/Subcaves | Learned location of Storage (-8) 2102 | -10/Subcaves | A Subdweller sparked back to life 2102 | -10/Subcaves | A Subdweller sparked back to life 2138 | -10/Subcaves | Found Prototype Leg 3326 | -10/Subcaves | Entered Materials 3326 | -8/Materials | Evolved 4 slots: Propulsion x2, Utility x2 3512 | -8/Materials | Garrison activated, responded to threat 3672 | -8/Materials | Build established: Scavenger-Mutant 4024 | -8/Materials | Discovered new exit (range 12) 4234 | -8/Materials | Discovered new exit (range 10) 4287 | -8/Materials | Discovered new exit (range 15) 4464 | -8/Materials | Discovered new exit (range 8) 5004 | -8/Materials | Identified exit to Garrison 5005 | -8/Materials | Entered Garrison 5178 | -8/Garrison | Phase Generator disabled 5195 | -8/Garrison | Triggered checkpoint 5312 | -8/Garrison | Build established: Mutant 5317 | -8/Garrison | Triggered checkpoint 5413 | -8/Garrison | Rescued a captive Derelict 5414 | -8/Garrison | Rescued a captive Derelict 5433 | -8/Garrison | Triggered checkpoint 5476 | -8/Garrison | Discovered new exit (range 11) 5646 | -8/Garrison | Build established: Scavenger-Mutant 5669 | -8/Garrison | Triggered checkpoint 5736 | -8/Garrison | Spotted B-75 Beast 5775 | -8/Garrison | Discovered new exit (range 10) 5843 | -8/Garrison | Core integrity fell below 50% 5889 | -8/Garrison | Core integrity fell below 20% 5919 | -8/Garrison | Lost 5 parts (1n3u1w) 6177 | -8/Garrison | Build established: Mutant 6308 | -8/Garrison | Destroyed B-75 Beast 6505 | -8/Garrison | Build established: Scavenger-Mutant 6512 | -8/Garrison | Entered Materials 6733 | -8/Materials | Destroyed by G-47 Trooper with Particle Gun Last Messages --------------- 06598_ Acquired Carbon-fiber Leg. 06600_ Acquired 59 matter. 06602_ K-01 Serf collects debris. 06617_ Acquired 150 matter. 06622_ K-01 Serf collects debris. 06622_ K-01 Serf destroyed. 06640_ G-47 Trooper destroyed. 06652_ Imp. Heat Sink fried. 06652_ G-47 Trooper destroyed. 06662_ K-01 Serf collects debris. 06670_ K-01 Serf cleans the Electrolysis Chamber. 06674_ K-01 Serf collects debris. 06677_ K-01 Serf cleans the Electrolysis Chamber. 06678_ K-01 Serf collects debris. 06684_ K-01 Serf cleans the Electrolysis Chamber. 06687_ K-01 Serf collects debris. 06690_ K-01 Serf cleans the Electrolysis Chamber. 06696_ K-01 Serf collects debris. 06728_ G-47 Trooper misfires. 06731_ G-47 Trooper system terminally corrupted. Map ----- +----------------------------------------------------+ | ?????????## ???????????????????? | | ????????? ??????????????????? | | ?????????? ??????????????????? | | ??????????? ??????????????????? | | ???????????# ?????????????????? | | ???????????# ?????????????????? | | ???????????# ######???????????? | | ???????????# #???????????? | | ??????????## #???????????# | | ?????#+#+## ##??????????# | | ?????# +??????????# | | ?????# #??????????# | | ?????## #??????????# | | ??????# ########## #??????????# | | ????????########?# +??????????# | | ????????# #?# #??????????# | | ????????# """ #?# +??????????# | | ????????# """ ### ############ | | ????????# """ # | | ????????# + | | #######+# """ # """ """ """ | | # # """ # """ """ """ | | # # """ !# """ """ """ | | # # # | | # #+###### | | # @# " " | | # %g= "T" | | # # """ | | # ####+#############+##### | | # #??????????????????????? | | # #??????????????????????? | | # #??????????????????????? | | #########??????????????????????? | | ???????????????????????????????? | | ???????????????????????????????? | | ???????????????????????????????? | | ???????????????????????????????? | | ???????????????????????????????? | | ???????????????????????????????? | | ???????????????????????????????? | | ???????????????????????????????? | | ???????????????????????????????? | | ???????????????????????????????? | | ???????????????????????????????? | | ???????????????????????????????? | | ???????????????????????????????? | | ???????????????????????????????? | | ???????????????????????????????? | | ???????????????????????????????? | | ???????????????????????????????? | +----------------------------------------------------+ Best States ------------- Heat Dissipation 59 Energy Generation 19 Energy Capacity 315 Matter Stores 300 Matter Capacity 300 Sight Range 16 Terrain Scan Density 10 Armor Coverage 375 Resistance: TH 10 Resistance: EM 20 Evasion (%) 55 Recoil Reduction 4 Item Schematics ----------------- None Robot Schematics ------------------ None Fabricated ------------ Nothing Alien Tech Used ----------------- None Achievements -------------- None Challenges ------------ None Game ------ Seed DirtyWardroneDriver Manual? 0 Play Time 00:40:06 Cumulative 160.4 hours Start 2024.04.30 @ 18:33:31 End 2024.04.30 @ 19:12:29 Sessions 1 Manual Loads 0 Difficulty Rogue Special Mode None Game No. 140 Rogue 140 Adventurer 0 Explorer 0 Win Type - Total 3 Types 2/0/0/1/0/0/0/0/0 Lore% 57 Gallery% 75 Achievement% 57 Wizard Run 0 Options --------- Layout 2 ASCII 0 Keyboard 1 Movement Numpad Keybinds 0 Fullscreen 1 Font 32/SmallcapsGlow Map View 77x44 Zoom Use 0% Tactical HUD 1 Map Filters NONE Filters NONE Steam 1 RUN: 1d2b59d4-c95b-4d6d-b0a8-c94039f9053d